bitfinex/quotes_BTCUSD_20241124
["timestamp","ask_amount","ask_price","bid_price","bid_amount"]
[1732416372729,0.002,98263.0,98249.0,1.62812009]
[1732416374037,0.002,98266.0,98249.0,0.03237924]
[1732416374242,0.002,98261.0,98237.0,0.0786]
[1732416374453,0.00101757,98265.0,98237.0,0.0786]
[1732416374454,0.002,98263.0,98238.0,0.00101782]
[1732416374667,0.00101757,98262.0,98238.0,0.00101782]
[1732416374885,0.00101757,98262.0,98237.0,0.0786]
[1732416375527,0.00101757,98262.0,98231.0,0.0008593]
[1732416375745,0.002,98254.0,98231.0,0.03439288]
[1732416375956,0.002,98256.0,98231.0,0.0008593]
[1732416376159,0.002,98254.0,98231.0,0.0008593]
[1732416376372,0.002,98256.0,98231.0,0.0008593]
[1732416377237,0.002,98256.0,98232.0,0.00101782]
[1732416378089,0.002,98263.0,98232.0,0.00101782]
[1732416378308,0.002,98258.0,98232.0,0.00101782]
[1732416378515,0.002,98258.0,98231.0,0.0008593]
[1732416378723,0.002,98258.0,98232.0,0.0008595]
[1732416379356,0.0789,98257.0,98232.0,0.0008595]
[1732416379571,0.002,98252.0,98232.0,0.0008595]
[1732416380849,0.002,98254.0,98232.0,0.0008595]
[1732416381058,0.00101757,98253.0,98232.0,0.0008595]
[1732416381762,0.002,98252.0,98232.0,0.0008595]
[1732416381973,0.00101757,98251.0,98232.0,0.0008595]
[1732416383982,0.002,98249.0,98232.0,0.0008595]
[1732416384341,0.00101757,98248.0,98232.0,0.0008595]
[1732416385156,0.002,98252.0,98232.0,0.0008595]
[1732416385157,0.00101757,98251.0,98232.0,0.0008595]
[1732416385362,0.00101757,98250.0,98232.0,0.0008595]
[1732416385571,0.00101757,98251.0,98232.0,0.0008595]
[1732416385788,0.00101757,98250.0,98232.0,0.0008595]
[1732416385992,0.00101757,98251.0,98232.0,0.0008595]
[1732416386195,0.00101757,98250.0,98232.0,0.0008595]
[1732416386398,0.00101757,98251.0,98232.0,0.0008595]
[1732416386617,0.00101757,98250.0,98232.0,0.0008595]
[1732416386838,0.1252,98257.0,98233.0,0.0010179]
[1732416387044,0.00101757,98256.0,98233.0,0.0010179]
[1732416387461,0.1252,98257.0,98234.0,0.03013801]
[1732416387669,0.1252,98257.0,98235.0,0.00101784]
[1732416387884,0.1252,98257.0,98232.0,0.0780595]
[1732416387885,0.1252,98257.0,98236.0,0.00101784]
[1732416388103,0.1252,98257.0,98233.0,0.00101784]
[1732416388785,0.0789,98257.0,98233.0,0.00101784]
[1732416392486,0.0806196,98257.0,98233.0,0.00101784]
[1732416396690,0.0487,98256.0,98194.0,0.37790308]
[1732416396897,0.0487,98256.0,98226.0,0.45722817]
[1732416397108,0.0487,98256.0,98227.0,0.27709]
[1732416397338,0.0487,98256.0,98228.0,0.00050917]
[1732416397676,0.0487,98256.0,98229.0,0.375013]
[1732416397895,0.0487,98256.0,98211.0,0.000859]
[1732416397896,0.0487,98256.0,98230.0,0.00050917]
[1732416398099,0.0487,98256.0,98231.0,0.789375]
[1732416398329,0.0487,98256.0,98232.0,0.00050917]
[1732416398532,0.00443441,98256.0,98233.0,1.487075]
[1732416398738,0.0806196,98257.0,98234.0,0.00050902]
[1732416399998,0.0806196,98257.0,98235.0,0.436675]
[1732416400234,0.0806196,98257.0,98236.0,0.000509]
[1732416400454,0.0806196,98257.0,98237.0,0.000509]
[1732416400890,0.0806196,98257.0,98234.0,0.00050901]
[1732416401095,0.0806196,98257.0,98234.0,0.36381801]
[1732416401321,0.0806196,98257.0,98235.0,0.704286]
[1732416401566,0.05000353,98257.0,98236.0,0.000509]
[1732416401773,0.05000353,98257.0,98237.0,0.00050901]
[1732416402186,0.05000353,98257.0,98222.0,0.2]
[1732416402329,0.05000353,98257.0,98213.0,0.00014513]
[1732416402330,0.05000353,98257.0,98228.0,0.2]
[1732416402564,0.05000353,98257.0,98229.0,1.871622]
[1732416403187,0.05000353,98257.0,98230.0,1.642764]
[1732416403415,0.05000353,98257.0,98229.0,1.809054]
[1732416403802,0.05000353,98257.0,98229.0,1.408445]
[1732416403997,0.05000353,98257.0,98230.0,1.245268]
[1732416404202,0.05000353,98257.0,98229.0,1.767144]
[1732416404359,0.003719,98280.0,98233.0,0.2]
[1732416404561,0.00127202,98279.0,98234.0,1.98024]
[1732416404764,0.00127202,98278.0,98234.0,1.98024]
[1732416405035,0.00127202,98279.0,98234.0,1.98024]
[1732416405475,0.09453194,98276.0,98234.0,1.98024]
[1732416405702,0.001719,98280.0,98234.0,1.98024]
[1732416405703,0.00127202,98275.0,98234.0,1.98024]
[1732416405939,0.0017196,98257.0,98234.0,1.98024]
[1732416406163,0.0017196,98257.0,98234.0,1.952688]
[1732416406441,0.0017196,98257.0,98235.0,1.478898]
[1732416406669,0.0017196,98257.0,98234.0,1.708557]
[1732416407351,0.075,98256.0,98234.0,1.708557]
[1732416407583,0.0732804,98256.0,98234.0,1.708557]
[1732416407811,1e-08,98256.0,98234.0,1.708557]
[1732416411341,1e-08,98256.0,98233.0,0.30632786]
[1732416411342,1e-08,98256.0,98235.0,1.248851]
[1732416411582,1e-08,98256.0,98234.0,1.558922]
[1732416413001,1e-08,98256.0,98234.0,1.558203]
[1732416414561,0.0017196,98257.0,98234.0,1.558203]
[1732416416030,0.04082371,98259.0,98234.0,1.558203]
[1732416416764,0.04082371,98259.0,98234.0,1.54528]
[1732416417438,0.03589176,98259.0,98234.0,1.54528]
[1732416417667,0.00051176,98259.0,98234.0,1.527338]
[1732416417926,0.00051176,98259.0,98234.0,1.725343]
[1732416418166,0.00051176,98259.0,98234.0,1.7262027]
[1732416418406,0.0017194,98257.0,98235.0,1.372913]
[1732416419408,0.0017194,98257.0,98236.0,1.22636]
[1732416419632,0.0017194,98257.0,98235.0,1.376551]
[1732416421278,0.0017194,98257.0,98236.0,1.249289]
[1732416421530,0.0017194,98257.0,98235.0,1.427646]
[1732416422191,0.0469,98262.0,98235.0,1.427646]
[1732416422192,0.04500966,98262.0,98235.0,1.427646]
[1732416422708,0.00951966,98262.0,98235.0,1.427646]
[1732416423861,0.00118731,98262.0,98235.0,1.427646]
[1732416424362,0.00118731,98262.0,98234.0,0.0008597]
[1732416424363,0.00118731,98262.0,98236.0,1.084729]
[1732416424607,0.00118731,98262.0,98237.0,0.830645]
[1732416424853,0.00118731,98262.0,98234.0,0.0008597]
[1732416424854,0.00118731,98262.0,98235.0,0.948237]
[1732416425094,0.0829,98261.0,98235.0,0.948237]
[1732416425313,0.0829,98261.0,98235.0,0.771945]
[1732416425536,0.0829,98261.0,98236.0,0.175155]
[1732416425763,0.0829,98261.0,98235.0,0.184886]
[1732416427017,0.0481,98260.0,98235.0,0.184886]
[1732416427253,0.0829,98259.0,98235.0,0.184886]
[1732416427929,0.07972803,98259.0,98235.0,0.184886]
[1732416428192,0.04399803,98259.0,98235.0,0.184886]
[1732416429950,0.0481,98258.0,98235.0,0.184886]
[1732416430079,0.0481,98258.0,98235.0,0.1857457]
[1732416430314,0.0481,98258.0,98236.0,0.321385]
[1732416430550,0.0481,98258.0,98236.0,0.203377]
[1732416431014,0.04779827,98258.0,98236.0,0.203377]
[1732416431221,0.04779827,98258.0,98235.0,0.0008597]
[1732416431444,0.0373653,98258.0,98236.0,0.202085]
[1732416431668,0.03407127,98258.0,98236.0,0.202085]
[1732416431876,0.03152314,98258.0,98236.0,0.202085]
[1732416432123,0.04399803,98259.0,98236.0,0.202085]
[1732416432124,0.0086222,98259.0,98236.0,0.202085]
[1732416434932,0.0471,98258.0,98236.0,0.202085]
[1732416436202,0.0115482,98258.0,98236.0,0.202085]
[1732416439031,0.09453194,98273.0,98236.0,0.202085]
[1732416439445,0.00127212,98272.0,98236.0,0.202085]
[1732416441344,0.00327212,98272.0,98236.0,0.202085]
[1732416441992,0.0471,98271.0,98236.0,0.202085]
[1732416442286,0.00127212,98270.0,98236.0,0.202085]
[1732416443060,0.0012243,98270.0,98236.0,0.202085]
[1732416443485,0.0012243,98270.0,98236.0,0.2029447]
[1732416443681,0.0029437,98270.0,98237.0,1.146186]
[1732416443878,0.0029437,98270.0,98238.0,0.0806]
[1732416444079,0.0029437,98270.0,98239.0,0.33792]
[1732416446253,0.0029437,98270.0,98242.0,0.49106104]
[1732416446429,0.0029437,98270.0,98243.0,0.274676]
[1732416447446,0.0029437,98270.0,98242.0,0.76673704]
[1732416447664,0.0029437,98270.0,98243.0,0.274676]
[1732416447877,0.0029437,98270.0,98241.0,0.49106104]
[1732416448079,0.0029437,98270.0,98242.0,0.275676]
[1732416448289,0.0049437,98270.0,98241.0,0.49106104]
[1732416448502,0.0049437,98270.0,98240.0,0.49106104]
[1732416448913,0.0049437,98270.0,98247.0,0.49106104]
[1732416449381,0.0029437,98270.0,98247.0,0.49106104]
[1732416449819,0.0029437,98270.0,98249.0,0.49106104]
[1732416450069,0.0029437,98270.0,98250.0,0.49106104]
[1732416450294,0.1287,98271.0,98250.0,0.49106104]
[1732416450490,0.1287,98271.0,98251.0,0.49106104]
[1732416451766,0.1287,98271.0,98253.0,0.49106104]
[1732416452004,0.1287,98271.0,98252.0,0.49106104]
[1732416452421,0.10423,98271.0,98244.0,0.53856104]
[1732416452641,0.10423,98271.0,98245.0,0.0010177]
[1732416453493,0.06817,98271.0,98245.0,0.0010177]
[1732416455225,0.06817,98271.0,98244.0,0.0475]
[1732416455445,0.06817,98271.0,98245.0,0.7568286]
[1732416455704,0.06817,98271.0,98245.0,0.0008596]
[1732416455905,0.0698892,98271.0,98245.0,0.0008596]
[1732416456743,0.1050892,98271.0,98245.0,0.0008596]
[1732416463425,0.0675492,98271.0,98245.0,0.0008596]
[1732416464885,0.0675492,98271.0,98246.0,0.0010177]
[1732416466109,0.0323492,98271.0,98247.0,0.0799]
[1732416466308,0.0323492,98271.0,98248.0,0.0010177]
[1732416467979,0.0323492,98271.0,98247.0,0.0799]
[1732416468656,0.02697722,98271.0,98247.0,0.0799]
[1732416469301,0.002,98269.0,98245.0,0.0008596]
[1732416469522,0.0352,98268.0,98245.0,0.0008596]
[1732416469737,0.0352,98268.0,98246.0,0.0008596]
[1732416469947,0.002,98265.0,98246.0,0.0008596]
[1732416470209,0.0352,98268.0,98246.0,0.0008596]
[1732416471050,0.0372,98268.0,98246.0,0.0008596]
[1732416471485,0.002,98262.0,98246.0,0.0008596]
[1732416471697,0.1108,98261.0,98246.0,0.0008596]
[1732416484776,0.0756,98261.0,98246.0,0.0008596]
[1732416485438,0.0756,98261.0,98238.0,0.04100328]
[1732416485647,0.0756,98261.0,98240.0,0.0465]
[1732416493759,0.03482977,98261.0,98240.0,0.0465]
[1732416494196,0.03482977,98261.0,98240.0,0.0473596]
[1732416499435,0.09453194,98265.0,98240.0,0.0473596]
[1732416499891,0.09653194,98265.0,98240.0,0.0473596]
[1732416500587,0.08041802,98264.0,98223.0,0.73048412]
[1732416500800,0.0794,98263.0,98234.0,0.00528814]
[1732416500985,0.0794,98263.0,98223.0,0.77180422]
[1732416500986,0.00101802,98262.0,98223.0,0.77180422]
[1732416501247,0.0464,98261.0,98224.0,1.308355]
[1732416501480,0.00101802,98260.0,98225.0,0.00101781]
[1732416501691,0.00101802,98260.0,98226.0,1.771211]
[1732416501873,0.00101802,98260.0,98227.0,0.00101781]
[1732416502095,0.00101802,98260.0,98227.0,1.49969681]
[1732416502314,0.00101802,98260.0,98228.0,1.498013]
[1732416502557,0.00101802,98260.0,98229.0,0.00101781]
[1732416502774,0.00101802,98260.0,98229.0,1.49931681]
[1732416502983,0.00101802,98260.0,98230.0,1.304595]
[1732416503227,0.00101802,98260.0,98231.0,0.00101781]
[1732416503494,0.00101802,98260.0,98232.0,0.1216]
[1732416503716,0.00101802,98260.0,98233.0,0.00101781]
[1732416504176,0.0464,98261.0,98233.0,0.00101781]
[1732416504177,1e-08,98261.0,98233.0,0.00101781]
[1732416504400,0.01092576,98265.0,98238.0,0.1216]
[1732416504626,0.01092576,98265.0,98240.0,0.046]
[1732416504847,0.01092576,98265.0,98242.0,0.046]
[1732416505088,0.01092576,98265.0,98244.0,0.046]
[1732416505318,0.002,98279.0,98245.0,0.503773]
[1732416505541,0.003719,98280.0,98246.0,0.04701769]
[1732416506456,0.003719,98280.0,98247.0,0.0756]
[1732416506669,0.01092576,98273.0,98248.0,0.04701769]
[1732416507332,0.0794,98272.0,98248.0,0.04701769]
[1732416507876,0.0017194,98261.0,98248.0,0.04701769]
[1732416508954,0.0469586,98272.0,98248.0,0.04701769]
[1732416509626,0.0469586,98272.0,98228.0,0.10226932]
[1732416509859,0.0469586,98272.0,98229.0,3.02203268]
[1732416510070,0.0469586,98272.0,98230.0,2.563898]
[1732416510334,0.0469586,98272.0,98231.0,0.00101768]
[1732416510552,0.0469586,98272.0,98232.0,2.964089]
[1732416510770,0.0469586,98272.0,98233.0,0.00101768]
[1732416510994,0.0469586,98272.0,98234.0,2.153775]
[1732416511278,0.0469586,98272.0,98235.0,0.00101768]
[1732416511504,0.04067381,98272.0,98237.0,0.0756]
[1732416511707,0.04067381,98272.0,98238.0,1.76334168]
[1732416512186,0.04067381,98272.0,98239.0,1.684669]
[1732416512400,0.04067381,98272.0,98240.0,0.00101768]
[1732416512619,0.04067381,98272.0,98241.0,1.484857]
[1732416512857,0.04067381,98272.0,98243.0,0.048]
[1732416513086,0.00101769,98271.0,98244.0,0.57959868]
[1732416513316,0.00101769,98271.0,98245.0,0.55689]
[1732416513547,0.00101769,98271.0,98246.0,0.00101768]
[1732416513766,0.04067381,98272.0,98246.0,0.00101768]
[1732416513963,0.04067381,98272.0,98243.0,0.048]
[1732416513964,0.04067381,98272.0,98244.0,0.00101768]
[1732416514199,0.04067381,98272.0,98244.0,0.96331568]
[1732416514420,0.04067381,98272.0,98245.0,0.940607]
[1732416514620,0.04067381,98272.0,98246.0,0.00101768]
[1732416515083,0.04067381,98272.0,98244.0,0.00101768]
[1732416515313,0.04067381,98272.0,98244.0,1.24555368]
[1732416515520,0.04067381,98272.0,98245.0,1.222915]
[1732416515738,0.04067381,98272.0,98246.0,0.00101768]
[1732416515941,0.00101769,98271.0,98246.0,0.00101768]
[1732416516153,0.00101769,98271.0,98244.0,0.00101768]
[1732416516392,0.00101769,98271.0,98244.0,0.56293268]
[1732416516619,0.09773068,98275.0,98246.0,0.0775]
[1732416516828,0.09773068,98275.0,98247.0,0.00101768]
[1732416517255,0.09773068,98275.0,98248.0,0.324222]
[1732416517478,0.09773068,98275.0,98250.0,0.048]
[1732416517682,0.05946261,98275.0,98252.0,0.048]
[1732416517903,0.05946261,98275.0,98254.0,0.0775]
[1732416519271,0.00662987,98275.0,98254.0,0.0775]
[1732416519527,0.03654888,98280.0,98254.0,0.0775]
[1732416519717,0.0787,98279.0,98254.0,0.0775]
[1732416520309,0.0017188,98272.0,98255.0,0.048]
[1732416521804,0.0787,98279.0,98255.0,0.048]
[1732416521805,0.0444788,98279.0,98255.0,0.048]
[1732416522606,0.002,98290.0,98255.0,0.048]
[1732416523019,0.002,98290.0,98257.0,0.048]
[1732416524314,0.002,98290.0,98258.0,0.0775]
[1732416524458,0.002,98290.0,98259.0,0.048]
[1732416525790,0.1269,98289.0,98259.0,0.048]
[1732416527876,0.1269,98289.0,98261.0,0.048]
[1732416529725,0.1269,98289.0,98262.0,0.0775]
[1732416531022,0.1269,98289.0,98263.0,0.00101753]
[1732416531270,0.1269,98289.0,98264.0,0.048]
[1732416531543,0.1269,98289.0,98265.0,0.00101753]
[1732416532415,0.002,98290.0,98265.0,0.00101753]
[1732416532618,0.002,98290.0,98267.0,0.0775]
[1732416532835,0.002,98290.0,98268.0,0.0492]
[1732416533088,0.002,98294.0,98269.0,0.00101753]
[1732416533296,0.002,98294.0,98270.0,0.1267]
[1732416533559,0.002,98294.0,98271.0,0.0492]
[1732416533981,0.002,98294.0,98272.0,0.0762]
[1732416534270,0.002,98294.0,98273.0,0.0492]
[1732416537123,0.002,98294.0,98273.0,0.05021749]
[1732416537335,0.002,98294.0,98273.0,0.0492]
[1732416539779,0.002,98294.0,98274.0,0.0762]
[1732416539924,0.002,98294.0,98275.0,0.0492]
[1732416540148,0.002,98294.0,98277.0,0.0492]
[1732416542326,0.002,98294.0,98228.0,0.42609647]
[1732416542538,0.002,98294.0,98249.0,2.80752247]
[1732416542752,0.002,98294.0,98250.0,2.567838]
[1732416542968,0.002,98294.0,98251.0,0.00101747]
[1732416543202,0.002,98294.0,98252.0,2.634932]
[1732416543417,0.002,98294.0,98253.0,2.48822447]
[1732416543639,0.002,98294.0,98254.0,2.416639]
[1732416543849,0.002,98294.0,98255.0,0.00101747]
[1732416544034,0.002,98294.0,98255.0,2.00657847]
[1732416544288,0.002,98294.0,98256.0,2.118175]
[1732416544522,0.002,98304.0,98257.0,0.00101742]
[1732416544738,0.00101747,98303.0,98258.0,4.33697838]
[1732416544954,0.001719,98294.0,98259.0,3.882727]
[1732416545171,0.001719,98294.0,98260.0,0.00101738]
[1732416545430,0.001719,98294.0,98261.0,3.367876]
[1732416545647,0.001719,98294.0,98263.0,0.1254]
[1732416545860,0.001719,98294.0,98265.0,0.1254]
[1732416546074,0.001719,98294.0,98267.0,0.1254]
[1732416546271,0.001719,98294.0,98254.0,0.0008595]
[1732416546272,0.001719,98294.0,98268.0,2.26976938]
[1732416546500,0.001719,98294.0,98269.0,1.475942]
[1732416546760,0.001719,98294.0,98271.0,0.1254]
[1732416546989,0.001719,98294.0,98272.0,1.90009334]
[1732416547201,0.001719,98294.0,98273.0,0.0762]
[1732416547413,0.001719,98294.0,98274.0,0.05021734]
[1732416547639,0.1293,98308.0,98276.0,0.0492]
[1732416547848,0.1293,98308.0,98278.0,0.0492]
[1732416548083,0.1293,98308.0,98279.0,0.00101734]
[1732416548266,0.1293,98308.0,98281.0,0.0492]
[1732416548470,0.1293,98308.0,98282.0,1.15347929]
[1732416548679,0.1293,98308.0,98283.0,0.0492]
[1732416553403,0.1293,98308.0,98274.0,0.041596]
[1732416553404,0.0468,98307.0,98278.0,0.0486]
[1732416553612,0.0495,98305.0,98274.0,0.041596]
[1732416553829,0.0771,98301.0,98273.0,0.0821]
[1732416554056,0.0495,98300.0,98273.0,0.0821]
[1732416554279,0.0495,98298.0,98273.0,0.0821]
[1732416554505,0.0495,98298.0,98274.0,0.00101745]
[1732416555792,0.0495,98298.0,98273.0,0.0821]
[1732416556227,0.0495,98298.0,98274.0,0.00101745]
[1732416557571,0.0495,98296.0,98268.0,0.78258958]
[1732416557785,0.0495,98296.0,98275.0,0.1288]
[1732416561962,0.0495,98296.0,98275.0,0.0467]
[1732416562172,0.0495,98296.0,98268.0,0.78258958]
[1732416564055,0.0775,98295.0,98268.0,0.04178958]
[1732416564312,0.124,98293.0,98268.0,0.04178958]
[1732416564611,0.2,98297.0,98260.0,0.04167724]
[1732416564612,0.124,98291.0,98260.0,0.04167724]
[1732416564857,0.0465,98285.0,98260.0,0.04167724]
[1732416565088,0.10201427,98290.0,98254.0,0.0008595]
[1732416565089,0.0465,98283.0,98254.0,0.0008595]
[1732416565300,0.0775,98282.0,98254.0,0.04221487]
[1732416565520,0.0775,98282.0,98254.0,0.0008595]
[1732416569814,0.0775,98282.0,98260.0,0.0008591]
[1732416571414,0.0465,98281.0,98260.0,0.0008591]
[1732416571664,0.0775,98280.0,98260.0,0.0008591]
[1732416571877,0.0775,98278.0,98260.0,0.0008591]
[1732416572094,0.0465,98277.0,98260.0,0.0008591]
[1732416573517,0.0465,98277.0,98260.0,0.04178062]
[1732416573739,0.0477,98275.0,98260.0,0.0008591]
[1732416573982,0.10201427,98274.0,98260.0,0.0008591]
[1732416574683,0.0477,98273.0,98260.0,0.0008591]
[1732416575165,0.0821,98272.0,98260.0,0.0008591]
[1732416576050,0.0821,98272.0,98232.0,0.00014516]
[1732416576291,0.0477,98271.0,98215.0,0.2037]
[1732416576534,0.0477,98271.0,98216.0,1.341495]
[1732416576763,0.0477,98271.0,98215.0,0.2037]
[1732416576764,0.0477,98271.0,98217.0,1.287492]
[1732416576947,0.0477,98271.0,98216.0,1.308301]
[1732416577228,0.0821,98270.0,98216.0,1.308301]
[1732416578113,0.0477,98269.0,98216.0,1.258996]
[1732416578335,0.2,98282.0,98217.0,1.248996]
[1732416578336,0.0821,98268.0,98217.0,1.248996]
[1732416578567,0.0477,98267.0,98216.0,1.258891]
[1732416579024,0.0821,98266.0,98217.0,0.1241]
[1732416579260,0.0821,98266.0,98219.0,0.0491]
[1732416579499,0.0821,98266.0,98221.0,0.1241]
[1732416580019,0.0477,98265.0,98222.0,0.37558]
[1732416580249,0.0821,98264.0,98222.0,0.37558]
[1732416580474,0.0477,98263.0,98223.0,0.00101782]
[1732416580700,0.0821,98262.0,98224.0,0.1241]
[1732416580938,0.0477,98261.0,98225.0,0.139927]
[1732416581376,0.0477,98261.0,98226.0,0.00101782]
[1732416581879,0.0821,98260.0,98224.0,0.1241]
[1732416582090,0.0821,98260.0,98226.0,0.075]
[1732416582272,0.0821,98260.0,98227.0,0.0491]
[1732416582454,0.0821,98260.0,98228.0,0.00101781]
[1732416583703,0.0821,98260.0,98229.0,0.340273]
[1732416583906,0.0821,98260.0,98230.0,0.00101781]
[1732416584340,0.0821,98260.0,98228.0,0.00101781]
[1732416584548,0.0821,98260.0,98228.0,0.22948581]
[1732416584718,0.0821,98260.0,98231.0,0.0462]
[1732416585078,0.0821,98260.0,98234.0,0.0462]
[1732416585273,0.0821,98260.0,98235.0,0.00101781]
[1732416591445,0.0821,98260.0,98235.0,0.04137492]
[1732416591653,0.08208194,98260.0,98235.0,0.00101781]
[1732416594929,0.08131153,98260.0,98235.0,0.00101781]
[1732416595595,0.08131153,98260.0,98235.0,0.04184467]
[1732416596007,0.07936782,98260.0,98235.0,0.04184467]
[1732416597111,0.0459,98259.0,98235.0,0.04184467]
[1732416599609,0.0459,98259.0,98235.0,0.04082686]
[1732416599821,0.0459,98259.0,98236.0,0.00101781]
[1732416600259,0.0459,98259.0,98229.0,0.00101781]
[1732416600473,0.0459,98259.0,98230.0,0.00101781]
[1732416600664,0.0459,98257.0,98229.0,0.00101784]
[1732416602861,0.0459,98257.0,98230.0,0.14169689]
[1732416603144,0.0459,98257.0,98231.0,0.97953583]
[1732416603318,0.0459,98257.0,98232.0,0.619796]
[1732416603559,0.0459,98257.0,98233.0,0.00101783]
[1732416603783,0.0459,98257.0,98233.0,0.17168]
[1732416604005,0.0459,98257.0,98228.0,0.08877186]
[1732416604194,0.0459,98257.0,98229.0,0.341855]
[1732416604429,0.0459,98257.0,98229.0,0.320071]
[1732416604716,0.0459,98257.0,98228.0,0.08877186]
[1732416604717,0.0459,98257.0,98230.0,0.2809082]
[1732416604908,0.0459,98257.0,98231.0,0.217188]
[1732416605158,0.0459,98257.0,98229.0,0.420746]
[1732416605871,0.0459,98257.0,98229.0,0.338916]
[1732416606324,0.0459,98257.0,98230.0,0.00101784]
[1732416606543,0.0459,98257.0,98231.0,0.217188]
[1732416606790,0.0459,98257.0,98232.0,0.00101784]
[1732416607011,0.0459,98257.0,98233.0,0.195004]
[1732416607242,0.0459,98257.0,98234.0,0.00101784]
[1732416607483,0.01857508,98257.0,98234.0,0.00101784]
[1732416607696,0.01755725,98257.0,98229.0,0.00101784]
[1732416607964,0.0782,98256.0,98229.0,0.12049684]
[1732416608212,0.01755725,98257.0,98229.0,0.12049684]
[1732416608213,0.0782,98254.0,98229.0,0.00101784]
[1732416608430,0.00101783,98253.0,98229.0,0.00101784]
[1732416609133,0.00101783,98253.0,98230.0,0.0008595]
[1732416609387,0.00101783,98253.0,98231.0,0.00101783]
[1732416609623,0.00101783,98253.0,98230.0,0.0008595]
[1732416609624,0.00101783,98253.0,98232.0,0.00101783]
[1732416609874,0.00101783,98253.0,98231.0,0.00101783]
[1732416610241,0.0782,98252.0,98230.0,0.0008595]
[1732416610649,0.04691783,98251.0,98230.0,0.0008595]
[1732416610851,0.04691783,98251.0,98228.0,0.08877186]
[1732416610852,0.04691783,98251.0,98228.0,0.08564922]
[1732416611068,0.04691783,98251.0,98229.0,0.00050896]
[1732416612441,0.0782,98250.0,98229.0,0.00050896]
[1732416612681,0.00127232,98249.0,98229.0,0.00050896]
[1732416616300,0.00127232,98249.0,98197.0,0.42298019]
[1732416616523,0.00127232,98249.0,98140.0,0.57959547]
[1732416616524,0.0824,98247.0,98216.0,1.32940435]
[1732416616761,0.0497,98246.0,98217.0,1.065897]
[1732416616926,0.0824,98245.0,98216.0,1.142884]
[1732416617195,0.0824,98245.0,98216.0,1.107163]
[1732416617442,0.0497,98244.0,98217.0,1.083245]
[1732416617679,0.0497,98244.0,98216.0,1.236955]
[1732416617896,0.0497,98244.0,98217.0,1.094641]
[1732416618148,0.0497,98244.0,98216.0,1.148088]
[1732416618371,0.0497,98244.0,98216.0,1.021312]
[1732416618627,0.0824,98245.0,98217.0,0.0494]
[1732416618628,0.08206,98245.0,98217.0,0.0494]
[1732416618869,0.08206,98245.0,98218.0,1.227128]
[1732416619083,0.07406453,98245.0,98218.0,1.227128]
[1732416619307,0.07406453,98245.0,98218.0,0.525417]
[1732416619531,0.07406453,98245.0,98218.0,0.61005]
[1732416621317,0.00217453,98245.0,98218.0,0.61005]
[1732416621774,0.05187453,98245.0,98218.0,0.61005]
[1732416622227,0.05187453,98245.0,98219.0,0.0494]
[1732416622451,0.05187453,98245.0,98220.0,1.784289]
[1732416622706,0.001719,98260.0,98220.0,1.784289]
[1732416622707,0.001719,98260.0,98223.0,0.0494]
[1732416622912,0.001719,98260.0,98224.0,2.596771]
[1732416623168,0.001719,98260.0,98225.0,2.529681]
[1732416623436,0.001719,98260.0,98226.0,0.244509]
[1732416623658,0.001719,98260.0,98227.0,0.194692]
[1732416623871,0.001719,98260.0,98228.0,0.0494]
[1732416624120,0.001719,98260.0,98229.0,0.164506]
[1732416624769,0.1321,98259.0,98229.0,0.526633]
[1732416624993,0.0824,98258.0,98219.0,0.002]
[1732416625219,0.0824,98258.0,98216.0,1.917932]
[1732416625220,0.0824,98258.0,98222.0,0.002]
[1732416625428,0.0824,98258.0,98223.0,2.234627]
[1732416625633,0.0824,98258.0,98223.0,1.772816]
[1732416625936,0.0824,98258.0,98219.0,2.387411]
[1732416626144,0.0824,98258.0,98220.0,1.734886]
[1732416626355,0.0824,98258.0,98219.0,1.862301]
[1732416626595,0.0824,98258.0,98219.0,1.780471]
[1732416626822,0.0824,98258.0,98222.0,0.002]
[1732416627016,0.0824,98258.0,98223.0,1.47029]
[1732416627466,0.0824,98258.0,98220.0,1.364858]
[1732416627685,0.0824,98258.0,98218.0,0.002]
[1732416627912,0.07920058,98258.0,98220.0,0.0494]
[1732416628132,0.07920058,98258.0,98219.0,2.01306]
[1732416628133,0.07920058,98258.0,98221.0,2.061255]
[1732416628350,0.07920058,98258.0,98222.0,0.0494]
[1732416628821,0.07920058,98258.0,98223.0,1.480428]
[1732416629035,0.0497,98257.0,98223.0,1.480428]
[1732416630955,0.0497,98257.0,98224.0,0.965972]
[1732416631160,0.0497,98255.0,98225.0,0.83089]
[1732416631384,0.001719,98260.0,98222.0,0.0494]
[1732416631385,0.0497,98253.0,98223.0,0.931944]
[1732416631611,0.0497,98251.0,98224.0,0.192418]
[1732416631845,0.001719,98260.0,98216.0,0.0494]
[1732416631846,0.0497,98249.0,98217.0,0.941943]
[1732416632063,0.0497,98247.0,98217.0,0.941943]
[1732416632289,0.0824,98246.0,98217.0,0.87379]
[1732416632485,0.0824,98246.0,98217.0,1.041538]
[1732416634173,0.0824,98246.0,98222.0,0.0008598]
[1732416634406,0.048,98245.0,98222.0,0.0008598]
[1732416634627,0.0821,98244.0,98223.0,1.009792]
[1732416634879,0.0821,98244.0,98228.0,0.49241436]
[1732416635111,0.0821,98244.0,98229.0,0.361739]
[1732416636000,0.0821,98244.0,98230.0,0.177286]
[1732416636221,0.0821,98244.0,98229.0,0.245377]
[1732416636411,0.0821,98244.0,98230.0,0.167086]
[1732416636629,0.0821,98244.0,98229.0,0.196577]
[1732416636957,0.04483,98244.0,98229.0,0.196577]
[1732416637197,0.04483,98244.0,98223.0,0.467763]
[1732416637893,0.00822,98244.0,98223.0,0.180057]
[1732416638114,0.00822,98244.0,98223.0,0.501036]
[1732416638352,0.00822,98244.0,98223.0,0.344258]
[1732416638575,0.00822,98244.0,98223.0,0.469493]
[1732416639517,0.00822,98244.0,98223.0,0.411577]
[1732416641982,0.00822,98244.0,98223.0,0.336489]
[1732416642181,0.048,98243.0,98223.0,0.364617]
[1732416642389,0.03429189,98243.0,98223.0,0.364617]
[1732416642833,0.03429189,98243.0,98223.0,0.333534]